Workbook

Sheet INICIO
C7: Recomendaciones
C8: 1.En cada hoja las celdas que se encuentran en verde requieren información.
C9: 2.Cada hoja cuenta con comentarios en las celdas que requieren información.
C10: 3.Los datos de consulta que se requieren, se deben tomar del año o mes en el que ocurre el incendio forestal.
C11: 4.Los porcentajes se deben ingresar en la fracción correspondiente, es decir si es 100% ingresar el numero 1.
C12: 5.Para determinar el VUI de sumidero de carbono es necesario primero completar la información de biomasa.
C13: 6.Para el VUI de salud en afectación indirecta, será necesario completar la información de población afectada.
C14: 7.Para el VNU-existencia de las coberturas, será necesario, posterior a obtener la información requerida para el componente de conservación, completar los datos de la hoja de flujo económico y así obtener el valor final.
A16: CONTENIDO

Sheet VUD-Madera
A1: SECRETARIA DISTRITAL DE AMBIENTE SDA
A2: METODOLOGÍA DE VALORACIÓN ECONÓMICA Y AMBIENTAL DE DAÑOS OCASIONADOS POR INCENDIOS FORESTALES PARA LA RESTAURACIÓN
A3: VALOR DE USO DIRECTO DE LA MADERA
C5: Valor de uso directo de la madera | D5: =G28 -> 0 | F5: Cobertura
F6: A
C7: Precio actualizado madera dura | F7: B
C8: Precio actualizado madera liviana | F8: C
F9: D
C10: Volumen comercial
C11: Nombre científico | D11: Densidad básica Tn /m3 | E11: Volumen perdido m3 | F11: Precio m3 mercado | G11: Costo
A12: Sp1 | C12: =C32 -> 0 | E12: =I32+I41+I50+I59 -> 0 | F12: =IF(D12>0.5,$D$7,$D$8) -> 0 | G12: =E12*F12 -> 0
A13: Sp2 | C13: 0 | E13: =I33+I42+I51+I60 -> 0 | F13: 0 | G13: =E13*F13 -> 0
A14: Sp3 | C14: 0 | E14: =I34+I43+I52+I61 -> 0 | F14: 0 | G14: 0
A15: Sp4 | C15: 0 | E15: =I35+I44+I53+I62 -> 0 | F15: 0 | G15: 0
A16: A | B16: 1 | C16: 0 | E16: =I36 -> 0 | F16: 0 | G16: 0
B17: 2 | C17: 0 | E17: =I37 -> 0 | F17: 0 | G17: 0
B18: 3 | C18: 0 | E18: =I38 -> 0 | F18: 0 | G18: 0
A19: B | B19: 1 | C19: =C45 -> 0 | E19: =I45 -> 0 | F19: 0 | G19: 0
B20: 2 | C20: =C46 -> 0 | E20: =I46 -> 0 | F20: 0 | G20: 0
B21: 3 | C21: =C47 -> 0 | E21: =I47 -> 0 | F21: 0 | G21: 0
A22: C | B22: 1 | C22: =C54 -> 0 | E22: =I54 -> 0 | F22: 0 | G22: 0
B23: 2 | C23: =C55 -> 0 | E23: =I55 -> 0 | F23: 0 | G23: 0
B24: 3 | C24: =C56 -> 0 | E24: =I56 -> 0 | F24: 0 | G24: 0
A25: D | B25: 1 | C25: =C63 -> 0 | E25: =I63 -> 0 | F25: 0 | G25: 0
B26: 2 | C26: =C64 -> 0 | E26: =I64 -> 0 | F26: 0 | G26: 0
B27: 3 | C27: =C65 -> 0 | E27: =I65 -> 0 | F27: 0 | G27: 0
A28: Total Valor de uso directo de la madera | G28: =ROUND(SUM(G12:G27),0) -> 0
A30: Cobertura A (Resultado del inventario)
A31: Nombre científico | D31: Volumen área testigo m3/ha | E31: Volumen residual A. Media m3/ha | F31: Área afectación media (ha) | G31: Volumen residual A. Alta m3/ha | H31: Área afectación alta (ha) | I31: Total
A32: Sp1 | I32: =((D32-E32)*$F$32)+((D32-G32)*$H$32) -> 0
A33: Sp2 | I33: 0
A34: Sp3 | I34: 0
A35: Sp4 | I35: 0
A36: 1 | I36: 0
A37: 2 | I37: 0
A38: 3 | I38: 0
A39: Cobertura B (Resultado del inventario)
A40: Nombre científico | D40: Volumen área testigo m3/ha | E40: Volumen residual A.media m3/ha | F40: Área afectación media (ha) | G40: Volumen residual A.alta m3/ha | H40: Área afectación alta (ha) | I40: Total
A41: Sp1 | C41: =C32 -> 0 | I41: =((D41-E41)*$F$41)+((D41-G41)*$H$41) -> 0
A42: Sp2 | C42: =C33 -> 0 | I42: =((D42-E42)*$F$41)+((D42-G42)*$H$41) -> 0
A43: Sp3 | C43: =C34 -> 0 | I43: =((D43-E43)*F41)+((D43-G43)*H41) -> 0
A44: Sp4 | C44: =C35 -> 0 | I44: =((D44-E44)*F41)+((D44-G44)*H41) -> 0
A45: 1 | I45: =((D45-E45)*F41)+((D45-G45)*H41) -> 0
A46: 2 | I46: =((D46-E46)*F41)+((D46-G46)*H41) -> 0
A47: 3 | I47: =((D47-E47)*F41)+((D47-G47)*H41) -> 0
A48: Cobertura C (Resultado del inventario)
A49: Nombre científico | D49: Volumen área testigo m3/ha | E49: Volumen residual A.media m3/ha | F49: Área afectación media (ha) | G49: Volumen residual A.alta m3/ha | H49: Área afectación alta (ha) | I49: Total
A50: Sp1 | C50: =C32 -> 0 | I50: =((D50-E50)*$F$50)+((D50-G50)*$H$50) -> 0
A51: Sp2 | C51: =C33 -> 0 | I51: 0
A52: Sp3 | C52: =C34 -> 0 | I52: 0
A53: Sp4 | C53: =C35 -> 0 | I53: 0
A54: 1 | I54: 0
A55: 2 | I55: 0
A56: 3 | I56: 0
A57: Cobertura D (Resultado del inventario)
A58: Nombre científico | D58: Volumen área testigo m3/ha | E58: Volumen residual A.media m3/ha | F58: Área afectación media (ha) | G58: Volumen residual A.alta m3/ha | H58: Área afectación alta (ha) | I58: Total
A59: Sp1 | C59: =C32 -> 0 | I59: =((D59-E59)*$F$59)+((D59-G59)*$H$59) -> 0
A60: Sp2 | C60: =C33 -> 0 | I60: 0
A61: Sp3 | C61: =C34 -> 0 | I61: 0
A62: Sp4 | C62: =C35 -> 0 | I62: 0
A63: 1 | I63: 0
A64: 2 | I64: 0
A65: 3 | I65: 0

Sheet VUD-Infraestructura
A1: SECRETARIA DISTRITAL DE AMBIENTE SDA
A2: METODOLOGÍA DE VALORACIÓN ECONÓMICA Y AMBIENTAL DE DAÑOS OCASIONADOS POR INCENDIOS FORESTALES PARA LA RESTAURACIÓN
A3: INFRAESTRUCTURA
A4: Valor de uso directo de infraestructura | C4: =ROUND(E48+I8+I27,0) -> 0
A6: Perdida directa de uso | F6: Perdida indirecta de uso
A7: Tipo de estructura | B7: Cuantificación de la medida | C7: Unidad de medida | D7: Precio de mercado por unidad de medida | E7: Total | F7: Cantidad de Empleos | G7: Salario SMDLV | H7: Días de suspensión | I7: Total
E8: =B8*D8 -> 0 | I8: =F8*G8*H8 -> 0
E9: 0 | F9: Tipo de Infraestructura | G9: Costo arriendo (días) | H9: Días inhabilitados de uso | I9: Total
E10: 0 | I10: =G10*H10 -> 0
E11: 0 | I11: =G11*H11 -> 0
E12: 0 | I12: 0
E13: 0 | I13: 0
E14: 0 | I14: 0
E15: 0 | I15: 0
E16: 0 | I16: 0
E17: 0 | F17: Servicio | G17: Costo de reconexion | H17: Costo de rehabilitatación de la infraestructura | I17: Total
E18: 0 | F18: Agua | I18: =G18+H18 -> 0
E19: 0 | F19: Gas | I19: =G19+H19 -> 0
E20: 0 | F20: Luz | I20: 0
E21: 0 | F21: Electricidad | I21: 0
E22: 0 | F22: Internet | I22: 0
E23: 0 | I23: 0
E24: 0 | I24: 0
E25: 0 | I25: 0
E26: 0 | I26: 0
E27: 0 | F27: Total | I27: =ROUND(SUM(I10:I16,I18:I26),0) -> 0
E28: 0
E29: 0
E30: 0
E31: 0
E32: 0
E33: 0
E34: 0
E35: 0
E36: 0
E37: 0
E38: 0
E39: 0
E40: 0
E41: 0
E42: 0
E43: 0
E44: 0
E45: 0
E46: 0
E47: 0
A48: Total | E48: =ROUND(SUM(E8:E47),0) -> 0
A49: Fuente: | B49: Precios IDU

Sheet VUD-Suelo Productivo
B1: SECRETARIA DISTRITAL DE AMBIENTE SDA
B2: METODOLOGÍA DE VALORACIÓN ECONÓMICA Y AMBIENTAL DE DAÑOS OCASIONADOS POR INCENDIOS FORESTALES PARA LA RESTAURACIÓN
B3: SUELO PRODUCTIVO
B5: valor de uso directo de suelo productivo | C5: =K32 -> 0
B6: SMLV
B7: Producción | C7: Rendimiento (t-lt)/ha/año | D7: Área afectada (ha) | E7: Precio de mercado (tn) | F7: Perdida de producción | G7: Empleos generados por ha | H7: SMLV | I7: Perdida de empleo | J7: Tiempo de recuperación del suelo (años) | K7: Tiempo de recuperación de la porductividad (años) | L7: Perdida de empleo | M7: Costos de establecimiento (ha) | N7: Costos de producción (ha)
A8: Cultivos transitorios | F8: =C8*D8*E8 -> 0 | H8: =$C$6*12 -> 0 | I8: =G8*H8 -> 0 | L8: =G8*H8*J8 -> 0
F9: =C9*D9*E9 -> 0 | H9: 0 | I9: =G9*H9 -> 0 | L9: 0
F10: 0 | H10: 0 | I10: 0 | L10: 0
H11: 0 | I11: 0 | L11: 0
F12: 0 | H12: 0 | I12: 0 | L12: 0
A13: Cultivos permanentes | F13: 0 | H13: 0 | I13: 0 | L13: 0
F14: 0 | H14: 0 | I14: 0 | L14: 0
F15: 0 | H15: 0 | I15: 0 | L15: 0
F16: 0 | H16: 0 | I16: 0 | L16: 0
F17: 0 | H17: 0 | I17: 0 | L17: 0
C20: Tiempo (años )
B21: Producción | C21: 0 | D21: 1 | E21: 2 | F21: 3 | G21: 4 | H21: 5 | I21: 6 | J21: 7 | K21: VPN
A22: Cultivos transitorios | B22: =B8 -> 0 | C22: =N8 -> 0 | D22: =F8 -> 0 | K22: =NPV(8.5%,D22:J22)+C22 -> 0
B23: =B9 -> 0 | C23: =N9 -> 0 | D23: =F9 -> 0 | K23: 0
B24: 0 | C24: 0 | D24: 0 | K24: 0
B25: 0 | C25: 0 | D25: 0 | K25: 0
B26: 0 | C26: 0 | D26: 0 | K26: 0
A27: Cultivos permanentes | B27: 0 | C27: =M13 -> 0 | D27: =F13+I13 -> 0 | K27: 0
B28: 0 | C28: =M14 -> 0 | D28: =F14+I14 -> 0 | K28: 0
B29: 0 | C29: 0 | D29: 0 | K29: 0
B30: 0 | C30: 0 | D30: 0 | K30: 0
B31: 0 | C31: 0 | D31: 0 | K31: 0
B32: Total valor presente neto perdida de suelo productivo | K32: =ROUND(SUM(K22:K31),0) -> 0

Sheet VUD-Recreación
A1: SECRETARIA DISTRITAL DE AMBIENTE SDA
A2: METODOLOGÍA DE VALORACIÓN ECONÓMICA Y AMBIENTAL DE DAÑOS OCASIONADOS POR INCENDIOS FORESTALES PARA LA RESTAURACIÓN
A3: RECREACIÓN
A5: Valor de uso directo de recreación | B5: =C22 -> 0
A6: SMLV MENSUAL | C6: 0
A7: SMMLV DIARIO | C7: =C6/30 -> 0
A8: RECARGO DOMINICAL FESTIVO | C8: =0.25 -> 0.25
A9: TRANSPORTE | C9: =0.538 -> 0.538
A10: DISFRUTE (REFRIGERIO) | C10: =0.22 -> 0.22
A12: ESTIMACIÓN DEL VALOR DE USO DIRECTO DE LA RECREACIÓN
A13: Día SMLV | C13: =C7/8 -> 0
A14: Horas de Disfrute | C14: 0
A15: SMMLV 1 día + Recargo dominical y/o festivo | C15: =C8*C7 -> 0
A16: Horas de Desplazamiento | C16: 2.8
A17: Población adulta que visita el lugar | C17: 0
A18: Tiempo de cierre (días) | C18: 0
A19: Costos de Transporte | C19: =C9*C7 -> 0
A20: Costo de Disfrute | C20: =C10*C7 -> 0
A21: Población Total | C21: 0
A22: VALOR ECONÓMICO TOTAL DE USO DIRECTO DE RECREACIÓN | C22: =ROUND((((C13*C14)+(C15*C16))*C17*C18)+((C19+C20)*C21*C18),0) -> 0
A25: En caso de no encontrar discriminado entre la población adulta y niños, tomar una relación 1:1, es decir por cada adulto, 1 niño; resultando la mitad de la población encontrada como referente de adultos y la otra mitad como niños.

Sheet BIOMASA
A1: SECRETARIA DISTRITAL DE AMBIENTE SDA
A2: METODOLOGÍA DE VALORACIÓN ECONÓMICA Y AMBIENTAL DE DAÑOS OCASIONADOS POR INCENDIOS FORESTALES PARA LA RESTAURACIÓN
A3: BIOMASA
A8: Cobertura área afectada | B8: Tipo | C8: Area total afectacion alta y media (ha) | D8: Especies | E8: Volumen total perdido para afectacion alta y media (m3) | F8: Volumen ponderado para el area afectada (m3/ha) | G8: Densidad (t/m3) | H8: Biomasa (t/ha) | I8: Dm
B9: Vegetación Acuática | C9: 2.84 | D9: Pennisetum clandestinum | E9: 196.144 | F9: =E9/$C$59 -> 69.06478873 | G9: 0.4 | H9: =F9*G9 -> 27.62591549 | I9: =(E9/$E$81)*G9 -> 0.1736832784
D10: Feijoa Sellowiana | E10: 5.481 | F10: =E10/$C$59 -> 1.929929577 | G10: 0.4 | H10: =F10*G10 -> 0.771971831 | I10: 0.004853363086 | L10: Biomasa coberturas diferentes a pastos y herbazales
D11: Senecio madagascariensis Poir | E11: 0.708 | F11: 0.2492957746 | G11: 0.4 | H11: 0.09971830986 | I11: 0.0006269259377
D12: Typha latifolia | E12: 129.814 | F12: 45.70915493 | G12: 0.4 | H12: 18.28366197 | I12: 0.1149488188 | L12: Volumen total m3/ha | M12: =E81 -> 451.728
F13: 0 | H13: 0 | I13: 0 | L13: Dm Tn/m3 | M13: =I81 -> 0.4
F14: 0 | H14: 0 | I14: 0 | L14: Factor de Expansión de Biomasa | M14: =IF(H81>190,1.74,(3.212-0.506*LN(H81))) -> 1.149473839
F15: 0 | H15: 0 | I15: 0 | L15: Biomasa total Tn | M15: =M12*M13*M14 -> 207.6998074
F16: 0 | H16: 0 | I16: 0
F17: 0 | H17: 0 | I17: 0
F18: 0 | H18: 0 | I18: 0 | L18: Biomasa Herbazal abierto y denso
F19: 0 | H19: 0 | I19: 0
F20: 0 | H20: 0 | I20: 0 | L20: Área ha | M20: 0
F21: 0 | H21: 0 | I21: 0 | L21: Área de borde ha | M21: 0
F22: 0 | H22: 0 | I22: 0 | L22: Biomasa IDEAM (tan/ha) | M22: 28.2
F23: 0 | H23: 0 | I23: 0 | L23: Biomasa total Tn | M23: =M20*M22 -> 0
F24: 0 | H24: 0 | I24: 0
F25: 0 | H25: 0 | I25: 0
F26: 0 | H26: 0 | I26: 0 | L26: Biomasa Pastizales
F27: 0 | H27: 0 | I27: 0 | L27: Área ha
F28: 0 | H28: 0 | I28: 0 | L28: Área de borde ha
F29: 0 | H29: 0 | I29: 0 | L29: Biomasa IDEAM (tan/ha) | M29: 12.7
F30: 0 | H30: 0 | I30: 0 | L30: Biomasa total Tn | M30: =SUM(M27:M28)*M29 -> 0
F31: 0 | H31: 0 | I31: 0
F32: 0 | H32: 0 | I32: 0 | L32: BIOMASA TOTAL PERDIDA Tn | M32: =M15+M23+M30 -> 207.6998074
F33: 0 | H33: 0 | I33: 0
F34: 0 | H34: 0 | I34: 0
F35: 0 | H35: 0 | I35: 0
F36: 0 | H36: 0 | I36: 0
F37: 0 | H37: 0 | I37: 0
F38: 0 | H38: 0 | I38: 0
F39: 0 | H39: 0 | I39: 0
F40: 0 | H40: 0 | I40: 0
F41: 0 | H41: 0 | I41: =(E41/$E$81)*G41 -> 0
F42: 0 | H42: 0 | I42: 0
F43: 0 | H43: 0 | I43: 0
F44: 0 | H44: 0 | I44: 0
F45: 0 | H45: 0 | I45: 0
F46: 0 | H46: 0 | I46: 0
F47: 0 | H47: 0 | I47: 0
F48: 0 | H48: 0 | I48: 0
F49: 0 | H49: 0 | I49: 0
F50: 0 | H50: 0 | I50: 0
F51: 0 | H51: 0 | I51: 0
F52: 0 | H52: 0 | I52: 0
F53: 0 | H53: 0 | I53: 0
F54: 0 | H54: 0 | I54: 0
F55: 0 | H55: 0 | I55: 0
F56: 0 | H56: 0 | I56: 0
F57: 0 | H57: 0 | I57: 0
F58: 0 | H58: 0 | I58: 0
A59: Total | C59: =SUM(C9:C58) -> 2.84 | E59: =SUM(E9:E58) -> 332.147 | F59: =SUM(F9:F58) -> 116.953169 | G59: - | H59: =SUM(H9:H58) -> 46.78126761 | I59: =SUM(I9:I58) -> 0.2941123862
A60: C.Borde | B60: Vegetación Acuática | C60: 2.14 | D60: Juncus effusus | E60: 64.929 | F60: =E60/C80 -> 30.34065421 | G60: 0.4 | H60: =F60*G60 -> 12.13626168 | I60: =(E60/$E$81)*G60 -> 0.05749389013
D61: Phytolacca bogotensis | E61: 0.446 | G61: 0.4 | H61: 0 | I61: 0.0003949279212
D62: Pennisetum clandestinum | E62: 35.814 | G62: 0.4 | H62: 0 | I62: 0.03171288917
D63: Baccharis latifolia | E63: 18.392 | G63: 0.4 | H63: 0 | I63: 0.01628590656
H64: 0 | I64: 0
H65: 0 | I65: 0
H66: 0 | I66: 0
H67: 0 | I67: 0
H68: 0 | I68: 0
H69: 0 | I69: 0
H70: 0 | I70: 0
H71: 0 | I71: 0
H72: 0 | I72: 0
H73: 0 | I73: 0
H74: =F74*G74 -> 0 | I74: 0
H75: 0 | I75: 0
H76: 0 | I76: 0
H77: 0 | I77: 0
H78: 0 | I78: 0
H79: 0 | I79: 0
A80: Total | C80: =SUM(C60:C79) -> 2.14 | D80: =SUM(D60:D79) -> 0 | E80: 119.581 | F80: =SUM(F60:F79) -> 30.34065421 | G80: - | H80: =SUM(H60:H79) -> 12.13626168 | I80: =SUM(I60:I79) -> 0.1058876138
A81: Total | C81: =C59+C80 -> 4.98 | E81: =E59+E80 -> 451.728 | F81: =F59+F80 -> 147.2938232 | G81: - | H81: =H59+H80 -> 58.91752929 | I81: =I59+I80 -> 0.4

Sheet VUI-Sumidero de carbono
B1: SECRETARIA DISTRITAL DE AMBIENTE SDA
B2: METODOLOGÍA DE VALORACIÓN ECONÓMICA Y AMBIENTAL DE DAÑOS OCASIONADOS POR INCENDIOS FORESTALES PARA LA RESTAURACIÓN
B3: SUMIDERO DE CARBONO
B5: Valor de uso indirecto de sumidero de carbono | C5: =C13 -> 36137770
B7: Sumidero de carbono
B8: Biomasa total | C8: =BIOMASA!M32 -> 207.6998074
B9: Carbono contenido (factor) | C9: =0.51 -> 0.51
B10: Carbono equivalente (factor) | C10: =3.67 -> 3.67
B11: Precio en el mercado € | C11: 24.12
B12: Tasa de cambio € a $ | C12: 3854
B13: Valor uso indirecto sumidero de carbono | C13: =ROUND(C8*C9*C10*C12*C11,0) -> 36137770
B14: Fuente de precios | C14: Sendeco2

Sheet VUI Soporte y Regulación
A1: SECRETARIA DISTRITAL DE AMBIENTE SDA
A2: METODOLOGÍA DE VALORACIÓN ECONÓMICA Y AMBIENTAL DE DAÑOS OCASIONADOS POR INCENDIOS FORESTALES
A3: SOPORTE Y REGULACIÓN
A6: Valor de uso indirecto de soporte y regulación | B6: =H32+O52 -> 942518933
A8: SMMLV | B8: 980657
A10: REGULACIÓN | K10: SOPORTE
A11: Coberturas | B11: Rendimientos | D11: Afectación | E11: Años recuperación | F11: Área (ha) | G11: $/m3 | H11: Costo | K11: Grupo agrologico-Grupo cobertura | L11: Área (ha) | M11: Recomendaciones | N11: Costos tratamientos (Ha) | O11: Costo total remediación
B12: Estudio (lt/s/Km2) | C12: m3 /año/ha | K12: 1A | M12: 3,4,5,6,7,8 | N12: 12519304.9 | O12: =L12*N12 -> 0
A13: Eucalipto y latifoliadas | B13: 21 | C13: =(B13*0.001*86400*365)/100 -> 6622.56 | D13: Alta | E13: 10 | H13: ='Flujo E.Regulacion '!M25 -> 0 | K13: 1B | M13: 3,4,5,6,7,8 | N13: 12519304.9 | O13: 0
D14: Media | E14: 7.5 | H14: ='Flujo E.Regulacion '!M26 -> 0 | K14: 1C | M14: 3,4,5,6,7,8 | N14: 12519304.9 | O14: 0
D15: Baja | E15: 2 | H15: ='Flujo E.Regulacion '!M27 -> 0 | K15: 1D | M15: 3,4,5,6,7,8 | N15: 12519304.9 | O15: 0
A16: Eucalipto y latifoliadas Borde | D16: Alta | E16: 10 | H16: ='Flujo E.Regulacion '!M28 -> 0 | K16: 1E | M16: 3,4,5,6,7,8 | N16: 12519304.9 | O16: 0
D17: Media | E17: 7.5 | H17: ='Flujo E.Regulacion '!M29 -> 0 | K17: 1F | M17: 3,4,5,6,7 | N17: 8924705 | O17: 0
A18: Pino y Ciprés | B18: 29 | C18: =(B18*0.001*86400*365)/100 -> 9145.44 | D18: Alta | E18: 10 | H18: ='Flujo E.Regulacion '!M30 -> 0 | K18: 1G | M18: 4,5,6,7 | N18: 7588277 | O18: 0
D19: Media | E19: 7.5 | H19: ='Flujo E.Regulacion '!M31 -> 0 | K19: 1H | M19: 4,5,6,7 | N19: 7588277 | O19: 0
D20: Baja | E20: 2 | H20: ='Flujo E.Regulacion '!M32 -> 0 | K20: 2A | M20: 3,4,5,6,7,8 | N20: 12519304.9 | O20: 0
A21: Pino y Ciprés Borde | D21: Alta | E21: 10 | H21: ='Flujo E.Regulacion '!M33 -> 0 | K21: 2B | M21: 3,4,5,6,7,8 | N21: 12519304.9 | O21: 0
D22: Media | E22: 7.5 | H22: ='Flujo E.Regulacion '!M34 -> 0 | K22: 2C | M22: 3,4,5,6,7,8 | N22: 12519304.9 | O22: 0
A23: Bosques natural /arbustales | B23: 34 | C23: =(B23*0.001*86400*365)/100 -> 10722.24 | D23: Alta | E23: 10 | H23: ='Flujo E.Regulacion '!M35 -> 0 | K23: 2D | M23: 3,4,5,6,7,8 | N23: 12519304.9 | O23: 0
D24: Media | E24: 7.5 | G24: =(0.355/100)*B8 -> 3481.33235 | H24: ='Flujo E.Regulacion '!M36 -> 0 | K24: 2E | M24: 3,4,5,6,7,8 | N24: 12519304.9 | O24: 0
D25: Baja | E25: 2 | H25: ='Flujo E.Regulacion '!M37 -> 0 | K25: 2F | M25: 3,4,5,6,7 | N25: 8924705 | O25: 0
A26: Arbustales borde | D26: Alta | E26: 10 | H26: ='Flujo E.Regulacion '!M38 -> 0 | K26: 2G | M26: 4,5,6,7 | N26: 7588277 | O26: 0
D27: Media | E27: 7.5 | H27: ='Flujo E.Regulacion '!M39 -> 0 | K27: 2H | M27: 4,5,6,7 | N27: 7588277 | O27: 0
A28: Páramo/herbazales | B28: 39 | C28: =(B28*0.001*86400*365)/100 -> 12299.04 | D28: Alta | E28: 5 | F28: 2.84 | H28: ='Flujo E.Regulacion '!M40 -> 519914306.3 | K28: 3A | M28: 3,4,5,6,7,8 | N28: 12519304.9 | O28: 0
A29: Páramo/herbazales borde | D29: Alta | E29: 5 | F29: 2.17 | H29: ='Flujo E.Regulacion '!M41 -> 397258465 | K29: 3B | M29: 3,4,5,6,7,8 | N29: 12519304.9 | O29: 0
A30: Pastos | B30: 7.6 | C30: =(B30*0.001*86400*365)/100 -> 2396.736 | D30: Alta | E30: 2 | H30: ='Flujo E.Regulacion '!M42 -> 0 | K30: 3C | M30: 3,4,5,6,7,8 | N30: 12519304.9 | O30: 0
A31: Pastos Borde | D31: Alta | E31: 2 | H31: ='Flujo E.Regulacion '!M43 -> 0 | K31: 3D | M31: 3,4,5,6,7,8 | N31: 12519304.9 | O31: 0
A32: Costo total | H32: =ROUND(SUM(H13:H30),0) -> 917172771 | K32: 3E | M32: 3,4,5,6,7,8 | N32: 12519304.9 | O32: 0
K33: 3F | L33: 2.84 | M33: 3,4,5,6,7 | N33: 8924705 | O33: 25346162.2
K34: 3G | M34: 6.7 | N34: 5265924 | O34: 0
K35: 3H | M35: 6.7 | N35: 5265924 | O35: 0
K36: 4A | M36: 1,2,3,6,7,8 | N36: 19223951.9 | O36: =L36*N36 -> 0
K37: 4B | M37: 1,2,3,6,7,8 | N37: 19223951.9 | O37: 0
K38: 4C | M38: 1,2,3,6,7,8 | N38: 19223951.9 | O38: 0
K39: 4D | M39: 1,2,3,6,7,8 | N39: 19223951.9 | O39: 0
K40: 4E | M40: 1,2,3,6,7,8 | N40: 19223951.9 | O40: 0
K41: 4F | M41: 1,2,3,6,7,8 | N41: 19223951.9 | O41: 0
K42: 4G | M42: 6.7 | N42: 5265924 | O42: 0
K43: 4H | M43: 6.7 | N43: 5265924 | O43: 0
K44: 5A | M44: 1,2,3,6,7,8 | N44: 19223951.9 | O44: 0
K45: 5B | M45: 1,2,3,6,7,8 | N45: 19223951.9 | O45: 0
K46: 5C | M46: 1,2,3,6,7,8 | N46: 19223951.9 | O46: 0
K47: 5D | M47: 1,2,3,6,7,8 | N47: 19223951.9 | O47: 0
K48: 5E | M48: 1,2,3,6,7,8 | N48: 19223951.9 | O48: 0
K49: 5F | M49: 1,2,3,6,7,8 | N49: 19223951.9 | O49: 0
K50: 5G | M50: 6.7 | N50: 5265924 | O50: 0
K51: 5H | M51: 6.7 | N51: 5265924 | O51: 0
K52: Total costos remediación | O52: =ROUND(SUM(O12:O51),0) -> 25346162

Sheet Flujo E.Regulacion
A1: Coberturas | B1: Rendimientos | D1: Afectación | E1: Años recuperación | F1: Área (ha) | G1: $/m3
B2: Estudio (lt/s/Km2) | C2: m3 /año/ha
A3: Eucalipto y latifoliadas | B3: 21 | C3: =(B3*0.001*86400*365)/100 -> 6622.56 | D3: Alta | E3: 10 | F3: ='VUI Soporte y Regulación '!F13 -> 0 | G3: ='VUI Soporte y Regulación '!G24 -> 3481.33235
D4: Media | E4: 7.5 | F4: ='VUI Soporte y Regulación '!F14 -> 0
D5: Baja | E5: 2 | F5: ='VUI Soporte y Regulación '!F15 -> 0
A6: Eucalipto y latifoliadas Borde | B6: 21 | C6: =(B3*0.001*86400*365)/100 -> 6622.56 | D6: Alta | E6: 10 | F6: ='VUI Soporte y Regulación '!F16 -> 0
D7: Media | E7: 7.5 | F7: ='VUI Soporte y Regulación '!F17 -> 0
A8: Pino y Ciprés | B8: 29 | C8: =(B8*0.001*86400*365)/100 -> 9145.44 | D8: Alta | E8: 10 | F8: ='VUI Soporte y Regulación '!F18 -> 0
D9: Media | E9: 7.5 | F9: ='VUI Soporte y Regulación '!F19 -> 0
D10: Baja | E10: 2 | F10: ='VUI Soporte y Regulación '!F20 -> 0
A11: Pino y Ciprés Borde | B11: 29 | C11: =(B8*0.001*86400*365)/100 -> 9145.44 | D11: Alta | E11: 10 | F11: ='VUI Soporte y Regulación '!F21 -> 0
D12: Media | E12: 7.5 | F12: ='VUI Soporte y Regulación '!F22 -> 0
A13: Bosques natural /arbustales | B13: 34 | C13: =(B13*0.001*86400*365)/100 -> 10722.24 | D13: Alta | E13: 10 | F13: ='VUI Soporte y Regulación '!F23 -> 0
D14: Media | E14: 7.5 | F14: ='VUI Soporte y Regulación '!F24 -> 0
D15: Baja | E15: 2 | F15: ='VUI Soporte y Regulación '!F25 -> 0
A16: Arbustales borde | B16: 34 | C16: =C13 -> 10722.24 | D16: Alta | E16: 10 | F16: ='VUI Soporte y Regulación '!F26 -> 0
D17: Media | E17: 7.5 | F17: ='VUI Soporte y Regulación '!F27 -> 0
A18: Páramo/herbazales | B18: 39 | C18: =(B18*0.001*86400*365)/100 -> 12299.04 | D18: Alta | E18: 5 | F18: ='VUI Soporte y Regulación '!F28 -> 2.84
A19: Páramo/herbazales borde | B19: 39 | C19: =(B19*0.001*86400*365)/100 -> 12299.04 | D19: Alta | E19: 5 | F19: ='VUI Soporte y Regulación '!F29 -> 2.17
A20: Pastos | B20: 7.6 | C20: =(B20*0.001*86400*365)/100 -> 2396.736 | D20: Alta | E20: 2 | F20: ='VUI Soporte y Regulación '!F30 -> 0
A21: Pastos Borde | B21: 7.6 | C21: =(B21*0.001*86400*365)/100 -> 2396.736 | D21: Alta | E21: 2 | F21: ='VUI Soporte y Regulación '!F31 -> 0
C23: Horizonte de tiempo
A24: Cobertura | B24: Nivel de afectación | C24: 0 | D24: 1 | E24: 2 | F24: 3 | G24: 4 | H24: 5 | I24: 6 | J24: 7 | K24: 8 | L24: 9 | M24: VPN DEL VALOR REGULACIÓN
A25: Eucalipto y latifoliadas | B25: Alta | C25: =ROUND(F3*$G$3*C3,0) -> 0 | D25: =C25 -> 0 | E25: 0 | F25: 0 | G25: 0 | H25: 0 | I25: 0 | J25: 0 | K25: 0 | L25: 0 | M25: =NPV(8.5%,D25:L25)+C25 -> 0
B26: Media | C26: =ROUND(F4*$G$3*C3,0) -> 0 | D26: 0 | E26: 0 | F26: 0 | G26: 0 | H26: 0 | I26: 0 | J26: 0 | M26: =NPV(8.5%,D26:J26)+C26 -> 0
B27: Baja | C27: =ROUND(F5*$G$3*C3,0) -> 0 | D27: =C27 -> 0 | M27: =NPV(8.5%,D27)+C27 -> 0
A28: Eucalipto y latifoliadas Borde | B28: Alta | C28: =ROUND(F6*$G$3*C6,0) -> 0 | D28: =C28 -> 0 | E28: =D28 -> 0 | F28: 0 | G28: 0 | H28: 0 | I28: 0 | J28: =I28 -> 0 | K28: =J28 -> 0 | L28: =K28 -> 0 | M28: =NPV(8.5%,D28:L28)+C28 -> 0
B29: Media | C29: =ROUND(F7*$G$3*C6,0) -> 0 | D29: =C29 -> 0 | E29: 0 | F29: 0 | G29: 0 | H29: 0 | I29: 0 | J29: 0 | M29: =NPV(8.5%,D29:J29)+C29 -> 0
A30: Pino y Ciprés | B30: Alta | C30: =ROUND(F8*$G$3*C8,0) -> 0 | D30: =C30 -> 0 | E30: 0 | F30: 0 | G30: 0 | H30: 0 | I30: 0 | J30: 0 | K30: 0 | L30: 0 | M30: =NPV(8.5%,D30:L30)+C30 -> 0
B31: Media | C31: =ROUND(F9*$G$3*C8,0) -> 0 | D31: 0 | E31: 0 | F31: 0 | G31: 0 | H31: 0 | I31: 0 | J31: 0 | M31: =NPV(8.5%,D31:J31)+C31 -> 0
B32: Baja | C32: =ROUND(F10*$G$3*C8,0) -> 0 | D32: =C32 -> 0 | M32: =NPV(8.5%,D32)+C32 -> 0
A33: Pino y Ciprés Borde | B33: Alta | C33: =ROUND(F11*$G$3*C11,0) -> 0 | D33: =C33 -> 0 | E33: =D33 -> 0 | F33: 0 | G33: 0 | H33: 0 | I33: 0 | J33: 0 | K33: 0 | L33: 0 | M33: =NPV(8.5%,D33:L33)+C33 -> 0
B34: Media | C34: =ROUND(F12*$G$3*C11,0) -> 0 | D34: =C34 -> 0 | E34: 0 | F34: 0 | G34: 0 | H34: 0 | I34: 0 | J34: 0 | M34: =NPV(8.5%,D34:J34)+C34 -> 0
A35: Bosques natural /arbustales | B35: Alta | C35: =ROUND(F13*$G$3*C13,0) -> 0 | D35: =C35 -> 0 | E35: 0 | F35: 0 | G35: 0 | H35: 0 | I35: 0 | J35: 0 | K35: 0 | L35: 0 | M35: =NPV(8.5%,D35:L35)+C35 -> 0
B36: Media | C36: =ROUND(F14*$G$3*C13,0) -> 0 | D36: =C36 -> 0 | E36: 0 | F36: 0 | G36: 0 | H36: 0 | I36: 0 | J36: 0 | M36: =NPV(8.5%,D36:J36)+C36 -> 0
B37: Baja | C37: =ROUND(F15*$G$3*C13,0) -> 0 | D37: 0 | M37: =NPV(8.5%,D37)+C37 -> 0
A38: Arbustales borde | B38: Alta | C38: =ROUND(F16*$G$3*C16,0) -> 0 | D38: 0 | E38: =D38 -> 0 | F38: 0 | G38: 0 | H38: 0 | I38: 0 | J38: 0 | K38: 0 | L38: 0 | M38: =NPV(8.5%,D38:L38)+C38 -> 0
B39: Media | C39: =ROUND(F17*$G$3*C16,0) -> 0 | D39: 0 | E39: =D39 -> 0 | F39: 0 | G39: 0 | H39: 0 | I39: 0 | J39: 0 | M39: =NPV(8.5%,D39:J39)+C39 -> 0
A40: Páramo/herbazales | B40: Alta | C40: =ROUND(F18*$G$3*C19,0) -> 121600410 | D40: 121600410 | E40: =D40 -> 121600410 | F40: 121600410 | G40: 121600410 | M40: =NPV(8.5%,D40:G40)+C40 -> 519914306.3
A41: Páramo/herbazales borde | B41: Alta | C41: =ROUND(F19*$G$3*C19,0) -> 92912989 | D41: 92912989 | E41: 92912989 | F41: 92912989 | G41: 92912989 | M41: =NPV(8.5%,D41:G41)+C41 -> 397258465
A42: Pastos | B42: Alta | C42: =ROUND(F20*$G$3*C20,0) -> 0 | D42: 0 | M42: =NPV(8.5%,D42)+C42 -> 0
A43: Pastos borde | B43: Alta | C43: =ROUND(F21*$G$3*C21,0) -> 0 | D43: 0 | M43: =NPV(8.5%,D43)+C43 -> 0
A44: Total VPN por servicio ecosistémico de regulación | M44: =SUM(M25:M43) -> 917172771.4

Sheet VUI-Salud
A1: SECRETARIA DISTRITAL DE AMBIENTE SDA
A2: METODOLOGÍA DE VALORACIÓN ECONÓMICA Y AMBIENTAL DE DAÑOS OCASIONADOS POR INCENDIOS FORESTALES PARA LA RESTAURACIÓN
A3: VALOR DE USO INDIRECTO-SALUD
A5: VALOR DE USO INDIRECTO SALUD | C5: =E27+L26 -> 0
A7: SMMLV
A9: Costos de atención | I9: Costos de atención IRA | L9: SMMLV | M9: Precio
A10: Tipo de atención | D10: Cantidad de personas | E10: SMDLV $ | F10: Costo en SMDLV $ | G10: Costo | I10: Consulta de urgencias | L10: 1.97 | M10: =$E$22*L10 -> 0
A11: Valoración inicial intrahospitalaria, por el médico general tratante, del paciente ingresado para tratamiento no quirúrgico u obstétrico | E11: 1.91 | F11: =ROUND(D11*(($C$7/30)*E11),0) -> 0 | G11: =D11*F11 -> 0 | I11: Exámenes
A12: Consulta de urgencias | E12: 1.97 | F12: =ROUND(D12*(($C$7/30)*E12),0) -> 0 | G12: =D12*F12 -> 0 | I12: Gases arteriales | L12: 1.86 | M12: =$E$22*L12 -> 0
A13: Sutura | E13: 0.56 | F13: 0 | G13: =D13*F13 -> 0 | I13: Mecánica respiratoria, pletismógrafo inductiva tórax y abdomen, fuerza y resistencia de músculo respiratorio | L13: 5.08 | M13: =$E$22*L13 -> 0
A14: Materiales de sutura y curación, medicamentos y soluciones, oxígeno, agentes y gases anestésicos | E14: 2.31 | F14: 0 | G14: =D14*F14 -> 0 | I14: Gammagrafía Pulmonar, Perfusión y ventilación | L14: 19.21 | M14: =$E$22*L14 -> 0
A15: cuidado intermedio quemaduras | E15: 26.64 | F15: =ROUND(D15*(($C$7/30)*E15),0) -> 0 | G15: =D15*F15 -> 0 | I15: Espirómetro simple más volumen respiratorio y capacidad pulmonar total | L15: 6.06 | M15: =$E$22*L15 -> 0
A16: Total costos de atención | G16: =ROUND(SUM(G11:G15),0) -> 0 | I16: Hospitalización
I17: Habitación unipersonal (5dias) | L17: 31.25 | M17: =$E$22*L17 -> 0
I18: Terapia
I19: Inhalo terapia, sesión (nebulizador ultrasónico o presión positiva intermitente) | L19: 11.55 | M19: =$E$22*L19 -> 0
B20: Costos directos de salud | I20: Total | L20: =L10+L12+L13+L14+L15+L17+L19 -> 76.98 | M20: =ROUND(SUM(M10:M19),0) -> 0
B21: Costos por servicio de Ambulancia (1.23 SMMLV). | E21: =(C7*1.23)*D12 -> 0
B22: SMDLV | E22: =C7/30 -> 0 | I22: Costos indirectos de salud $
B23: Costos de atención | E23: =G16 -> 0 | I23: Población potencialmente afectable en un rango dañino para grupos sensibles (Rango 38-55 µg/m3)
B24: Tiempo de incapacidad (días) | I24: Población potencialmente afectable en un rango dañino para la salud (Rango 56-150 µg/m3)
B25: Población incapacitada | I25: Costos de atención IRA | L25: =M20 -> 0
B26: Costo de oportunidad del tiempo | E26: =E22*E25*E24 -> 0 | I26: Total costos indirectos | L26: =(L23+L24)*L25 -> 0
B27: Total costos directos | E27: =ROUND((E21+E23)+(E24*E25*E26),0) -> 0

Sheet Población VUI salud
B1: Rango 38-55 µg/m3 | H1: Rango 56-150 µg/m3
B2: LOCALIDADES | C2: ÁREA AFECTADA (ha) | D2: DENSIDAD POBLACIONAL (INDIV/ha) | E2: POBLACIÓN POTENCIALMENTE AFECTABLE ESTIMADA | H2: LOCALIDADES | I2: ÁREA AFECTADA (ha) | J2: DENSIDAD POBLACIONAL (INDIV/ha) | K2: POBLACIÓN POTENCIALMENTE AFECTABLE ESTIMADA
B3: USAQUÉN | E3: =ROUND(C3*D3,0) -> 0 | H3: USAQUÉN | K3: =ROUND(I3*J3,0) -> 0
B4: CHAPINERO | E4: =ROUND(C4*D4,0) -> 0 | H4: CHAPINERO | K4: =ROUND(I4*J4,0) -> 0
B5: SANTA FE | E5: 0 | H5: SANTA FE | K5: 0
B6: SAN CRISTÓBAL | E6: 0 | H6: SAN CRISTÓBAL | K6: 0
B7: USME | E7: 0 | H7: USME | K7: 0
B8: TUNJUELITO | E8: 0 | H8: TUNJUELITO | K8: 0
B9: BOSA | E9: 0 | H9: BOSA | K9: 0
B10: KENNEDY | E10: 0 | H10: KENNEDY | K10: 0
B11: FONTIBÓN | E11: 0 | H11: FONTIBÓN | K11: 0
B12: ENGATIVÁ | E12: 0 | H12: ENGATIVÁ | K12: 0
B13: SUBA | E13: 0 | H13: SUBA | K13: 0
B14: BARRIOS UNIDOS | E14: 0 | H14: BARRIOS UNIDOS | K14: 0
B15: TEUSAQUILLO | E15: 0 | H15: TEUSAQUILLO | K15: 0
B16: LOS MÁRTIRES | E16: 0 | H16: LOS MÁRTIRES | K16: 0
B17: ANTONIO NARIÑO | E17: 0 | H17: ANTONIO NARIÑO | K17: 0
B18: PUENTE ARANDA | E18: 0 | H18: PUENTE ARANDA | K18: 0
B19: LA CANDELARIA | E19: 0 | H19: LA CANDELARIA | K19: 0
B20: RAFAEL URIBE URIBE | E20: 0 | H20: RAFAEL URIBE URIBE | K20: 0
B21: CIUDAD BOLÍVAR | E21: 0 | H21: CIUDAD BOLÍVAR | K21: 0
B22: SUMAPAZ | E22: 0 | H22: SUMAPAZ | K22: 0
B23: Total población | E23: =ROUND(SUM(E3:F22),0) -> 0 | H23: Total de población potencialmente afectable | K23: =ROUND(SUM(K3:K21),0) -> 0
B24: Morbilidad por enfermedad respiratoria -Bogotá % | H24: Morbilidad por enfermedad respiratoria -Bogotá % | K24: =E24 -> 0
B25: Resultado morbilidad por enfermedad respiratoria | E25: =ROUND(E23*E24,0) -> 0 | H25: Resultado morbilidad por enfermedad respiratoria | K25: =ROUND(K23*K24,0) -> 0
B26: Población sensible | E26: < 4 años | F26: >60 años | H26: Población estimada como afectada 24% (PM 2,5) | K26: =ROUND(K25*0.24,0) -> 0
B27: Porcentaje de población sensible < 4 años y >60 años
B28: Población atendida por enfermedad respiratoria 33% y 9% | E28: =ROUND(E25*E27,0) -> 0 | F28: =ROUND(E25*F27,0) -> 0
B29: Población estimada como afectada 13% (PM 2,5) | E29: =ROUND(E28*0.13,0) -> 0 | F29: =ROUND(F28*0.13,0) -> 0
B30: TOTAL POBLACIÓN ESTIMADA COMO AFECTADA (PM2,5) | F30: =ROUND(SUM(E29:F29),0) -> 0

Sheet VNU-Coberturas
A1: SECRETARIA DISTRITAL DE AMBIENTE SDA
A2: METODOLOGÍA DE VALORACIÓN ECONÓMICA Y AMBIENTAL DE DAÑOS OCASIONADOS POR INCENDIOS FORESTALES PARA LA RESTAURACIÓN
A3: VALOR DE EXISTENCIA DE LA COBERTURA
A5: Valor de existencia de las coberturas | B5: =ROUND(B33+J41+M36,0) -> 4073349461
A6: SMMLV | B6: 980657
D9: VALOR ECONÓMICO DE COSTOS DE REPOSICIÓN | L9: VALOR ECONÓMICO DE COSTOS INCURRIDOS POR CONSERVACIÓN
A10: VALOR ECONÓMICO DE COSTOS POR EXTINCIÓN | D10: COBERTURA | E10: Estados de desarrollo | F10: AFECTACIÓN | G10: ÁREA ha | H10: IVP/ha | I10: SMMLV | J10: IMPORTANCIA DEL ARBOLADO | M10: Predios
A11: Entidad | B11: Costos | D11: Vegetación acuática - Herbazal | E11: Fustal | F11: ALTA | G11: 2.84 | I11: =B6 -> 980657 | J11: =ROUND($G$11*H11*I11,0) -> 0 | L11: Nombre del predio | M11: FINCA EL SAY
A12: Cruz roja | B12: 0 | E12: Latizal | I12: =0.4379*$B$6 -> 429429.7003 | J12: =ROUND($G$11*H12*I12,0) -> 0 | L12: Puntaje | M12: 130
A13: Defensa civil | B13: 0 | E13: Brinzal | H13: 1900 | I13: =0.4379*$B$6 -> 429429.7003 | J13: 2317202663 | L13: Estado de conservación | M13: PRESERVACIÓN
A14: UAECOB | B14: 10007327 | E14: Fustal Borde | G14: 2.14 | I14: =B6 -> 980657 | J14: =ROUND($G$14*H14*I14,0) -> 0
A15: IDIGER | B15: 0 | E15: Latizal Borde | I15: =0.4379*$B$6 -> 429429.7003 | J15: =ROUND($G$14*H15*I15,0) -> 0
A16: TOTAL | B16: =ROUND(SUM(B12:B15),0) -> 10007327 | E16: Brinzal Borde | H16: 1900 | I16: =0.4379*$B$6 -> 429429.7003 | J16: =ROUND($G$14*H16*I16,0) -> 1746061161
E17: Fustal | F17: ALTA | I17: =B6 -> 980657 | J17: =ROUND($G$17*H17*I17,0) -> 0
E18: Latizal | I18: =0.4379*$B$6 -> 429429.7003 | J18: =ROUND($G$17*H18*I18,0) -> 0 | M18: Predios
A19: OTRAS ENTIDADES | E19: Brinzal | I19: =0.4379*$B$6 -> 429429.7003 | J19: =ROUND($G$17*H19*I19,0) -> 0 | M19: =M11 -> FINCA EL SAY
A20: Entidad | B20: Costos | E20: Fustal Borde | I20: =B6 -> 980657 | J20: =ROUND($G$20*H20*I20,0) -> 0 | L20: Área del predio (ha) | M20: 61.212
E21: Latizal Borde | I21: =0.4379*$B$6 -> 429429.7003 | J21: =ROUND($G$20*H21*I21,0) -> 0 | L21: Área afectada | M21: 2.84
E22: Brinzal Borde | I22: =0.4379*$B$6 -> 429429.7003 | J22: =ROUND($G$20*H22*I22,0) -> 0 | L22: VpAv /ha | M22: =12.31*$B$6 -> 12071887.67
E23: Fustal | F23: ALTA | I23: =B6 -> 980657 | J23: =ROUND($G$23*H23*I23,0) -> 0 | L23: Valor avalúo | M23: =M20*M22 -> 738944388.1
E24: Latizal | I24: =0.4379*$B$6 -> 429429.7003 | J24: =ROUND($G$23*H24*I24,0) -> 0 | L24: Equivalencia en SMMLV | M24: =M23/$B$6 -> 753.51972
E25: Brinzal | I25: =0.4379*$B$6 -> 429429.7003 | J25: =ROUND($G$23*H25*I25,0) -> 0 | L25: Valor de cálculo impuesto | M25: =IF(M24 <= 135,"0,004","0,0065") -> 0,0065
E26: Fustal Borde | I26: =B6 -> 980657 | J26: =ROUND($G$26*H26*I26,0) -> 0 | L26: Impuesto predio | M26: =M25*M23 -> 4803138.522
E27: Latizal Borde | I27: =0.4379*$B$6 -> 429429.7003 | J27: =ROUND($G$26*H27*I27,0) -> 0 | L27: Impuesto área afectada | M27: =(M26/M20)*M21 -> 222847.0464
E28: Brinzal Borde | I28: =0.4379*$B$6 -> 429429.7003 | J28: 0 | L28: Valor de calculo incentivo | M28: =IF(M12 >74,"0,002",IF(M12>49,"0,005",IF(M12 >19,"0,01",IF(M12<=19,"0,016","NA")))) -> 0,002
E29: Fustal | F29: ALTA | I29: =B6 -> 980657 | J29: =ROUND($G$29*H29*I29,0) -> 0 | L29: Valor a pagar con el incentivo | M29: =M28*M27 -> 445.6940928
A30: Total | B30: =ROUND(SUM(B20:B29),0) -> 0 | E30: Latizal | I30: =0.4379*$B$6 -> 429429.7003 | J30: =ROUND($G$29*H30*I30,0) -> 0 | L30: Costo social | M30: =(M27-M29)/M21 -> 78310.33532
E31: Brinzal | I31: =0.4379*$B$6 -> 429429.7003 | J31: =ROUND($G$29*H31*I31,0) -> 0 | L31: TOTAL VALOR DE CONSERVACIÓN | Y31: =SUM(M30:Y30) -> 78310.33532
E32: Fustal Borde | I32: =B6 -> 980657 | J32: =ROUND($G$32*H32*I32,0) -> 0
A33: TOTAL ENTIDADES | B33: =ROUND(SUM(B16+B30),0) -> 10007327 | E33: Latizal Borde | I33: =0.4379*$B$6 -> 429429.7003 | J33: =ROUND($G$32*H33*I33,0) -> 0
E34: Brinzal Borde | I34: =0.4379*$B$6 -> 429429.7003 | J34: =ROUND($G$32*H34*I34,0) -> 0
E35: Fustal | F35: ALTA | I35: =B6 -> 980657 | J35: =ROUND($G$35*H35*I35,0) -> 0
E36: Latizal | I36: =0.4379*$B$6 -> 429429.7003 | J36: =ROUND($G$35*H36*I36,0) -> 0 | L36: Total costos incurridos en conservación | M36: =ROUND(SUM(M30:Y30),0) -> 78310
E37: Brinzal | I37: =0.4379*$B$6 -> 429429.7003 | J37: =ROUND($G$35*H37*I37,0) -> 0
E38: Fustal Borde | I38: =B6 -> 980657 | J38: =ROUND($G$38*H38*I38,0) -> 0
E39: Latizal Borde | I39: =0.4379*$B$6 -> 429429.7003 | J39: =ROUND($G$38*H39*I39,0) -> 0
E40: Brinzal Borde | I40: =0.4379*$B$6 -> 429429.7003 | J40: =ROUND($G$38*H40*I40,0) -> 0
D41: TOTAL | J41: =ROUND(SUM(J11:J40),0) -> 4063263824

Sheet Flujo E.Conservación
C1: Predios
B2: Cobertura | C2: Afectación | D2: Tiempo de recuperación | E2: ='VNU-Coberturas'!M11 -> FINCA EL SAY | F2: ='VNU-Coberturas'!N11 -> 0 | G2: ='VNU-Coberturas'!O11 -> 0 | H2: ='VNU-Coberturas'!P11 -> 0 | I2: ='VNU-Coberturas'!Q11 -> 0 | J2: ='VNU-Coberturas'!R11 -> 0 | K2: ='VNU-Coberturas'!S11 -> 0 | L2: ='VNU-Coberturas'!T11 -> 0 | M2: ='VNU-Coberturas'!U11 -> 0 | N2: ='VNU-Coberturas'!V11 -> 0 | O2: ='VNU-Coberturas'!W11 -> 0 | P2: ='VNU-Coberturas'!X11 -> 0 | Q2: ='VNU-Coberturas'!Y11 -> 0
A3: Área | B3: Coberturas lignificadas | C3: Alta | D3: 10
C4: Media | D4: 7.5
C5: Baja | D5: 2
B6: Herbazales | C6: Alta | D6: 5 | E6: 2.84
B7: Pastos | C7: Alta | D7: 2
B8: Costo social por hectárea | E8: ='VNU-Coberturas'!M30 -> 78310.33532 | F8: ='VNU-Coberturas'!N30 -> 0 | G8: ='VNU-Coberturas'!O30 -> 0 | H8: ='VNU-Coberturas'!P30 -> 0 | I8: ='VNU-Coberturas'!Q30 -> 0 | J8: ='VNU-Coberturas'!R30 -> 0 | K8: ='VNU-Coberturas'!S30 -> 0 | L8: ='VNU-Coberturas'!T30 -> 0 | M8: ='VNU-Coberturas'!U30 -> 0 | N8: ='VNU-Coberturas'!V30 -> 0 | O8: ='VNU-Coberturas'!W30 -> 0 | P8: ='VNU-Coberturas'!X30 -> 0 | Q8: ='VNU-Coberturas'!Y30 -> 0
C12: Predio | D12: Afectación | E12: 0 | F12: 1 | G12: 2 | H12: 3 | I12: 4 | J12: 5 | K12: 6 | L12: 7 | M12: 8 | N12: 9 | O12: VPN DEL VALOR DE EXISTENCIA
C13: =E2 -> FINCA EL SAY | D13: Alta | E13: =ROUND(E3*$E$8,0) -> 0 | F13: =ROUND(E3*$E$8,0) -> 0 | G13: =E13 -> 0 | H13: =F13 -> 0 | I13: 0 | J13: 0 | K13: 0 | L13: 0 | M13: 0 | N13: 0 | O13: =NPV(8.5%,F13:N13)+E13 -> 0
D14: Media | E14: =ROUND(E4*$E$8,0) -> 0 | F14: =ROUND(E4*$E$8,0) -> 0 | G14: =ROUND(E4*$E$8,0) -> 0 | H14: =G14 -> 0 | I14: =H14 -> 0 | J14: =I14 -> 0 | K14: =J14 -> 0 | L14: =K14 -> 0 | M14: 0 | N14: 0 | O14: =NPV(8.5%,F14:N14)+E14 -> 0
D15: Baja | E15: =ROUND(E5*$E$8,0) -> 0 | F15: =E15 -> 0 | G15: 0 | H15: 0 | I15: 0 | J15: 0 | K15: 0 | L15: 0 | M15: 0 | N15: 0 | O15: =NPV(8.5%,F15:N15)+E15 -> 0
D16: Herbazal | E16: =ROUND(E6*$E$8,0) -> 222401 | F16: =E16 -> 222401 | G16: =F16 -> 222401 | H16: =G16 -> 222401 | I16: 222401 | J16: 0 | K16: 0 | L16: 0 | M16: 0 | N16: 0 | O16: =NPV(8.5%,F16:N16)+E16 -> 950896.9718
D17: Pastos | E17: =ROUND(E7*$E$8,0) -> 0 | F17: =E17 -> 0 | G17: 0 | H17: 0 | I17: 0 | J17: 0 | K17: 0 | L17: 0 | M17: 0 | N17: =M17 -> 0 | O17: 0
C18: =F2 -> 0 | D18: Alta | E18: =ROUND(F3*F8,0) -> 0 | F18: =E18 -> 0 | G18: =F18 -> 0 | H18: 0 | I18: 0 | J18: 0 | K18: 0 | L18: 0 | M18: 0 | N18: =M18 -> 0 | O18: 0
D19: Media | E19: =F4*$F$8 -> 0 | F19: =E19 -> 0 | G19: =F19 -> 0 | H19: 0 | I19: 0 | J19: 0 | K19: 0 | L19: =K19 -> 0 | M19: 0 | N19: 0 | O19: 0
D20: Baja | E20: =F5*$F$8 -> 0 | F20: =E20 -> 0 | G20: 0 | H20: 0 | I20: 0 | J20: 0 | K20: 0 | L20: 0 | M20: 0 | N20: 0 | O20: 0
D21: Herbazal | E21: =ROUND(F6*$F$8,0) -> 0 | F21: 0 | G21: =F21 -> 0 | H21: =G21 -> 0 | I21: =H21 -> 0 | J21: 0 | K21: 0 | L21: 0 | M21: 0 | N21: 0 | O21: 0
D22: Pastos | E22: =ROUND(F7*$F$8,0) -> 0 | F22: 0 | G22: 0 | H22: 0 | I22: 0 | J22: 0 | K22: 0 | L22: 0 | M22: 0 | N22: 0 | O22: 0
C23: =G2 -> 0 | D23: Alta | E23: =ROUND(G3*$G$8,0) -> 0 | F23: 0 | G23: =F23 -> 0 | H23: 0 | I23: 0 | J23: 0 | K23: 0 | L23: 0 | M23: 0 | N23: 0 | O23: 0
D24: Media | E24: =ROUND(G4*$G$8,0) -> 0 | F24: 0 | G24: =F24 -> 0 | H24: 0 | I24: 0 | J24: 0 | K24: 0 | L24: 0 | M24: 0 | N24: 0 | O24: 0
D25: Baja | E25: =ROUND(G5*$G$8,0) -> 0 | F25: 0 | G25: 0 | H25: 0 | I25: 0 | J25: 0 | K25: 0 | L25: 0 | M25: 0 | N25: 0 | O25: 0
D26: Herbazal | E26: =ROUND(G6*$G$8,0) -> 0 | F26: 0 | G26: =F26 -> 0 | H26: =G26 -> 0 | I26: =H26 -> 0 | J26: 0 | K26: 0 | L26: 0 | M26: 0 | N26: 0 | O26: 0
D27: Pastos | E27: =ROUND(G7*$G$8,0) -> 0 | F27: 0 | G27: 0 | H27: 0 | I27: 0 | J27: 0 | K27: 0 | L27: 0 | M27: 0 | N27: 0 | O27: 0
C28: =H2 -> 0 | D28: Alta | E28: =ROUND(H3*$H$8,0) -> 0 | F28: 0 | G28: =F28 -> 0 | H28: 0 | I28: 0 | J28: 0 | K28: 0 | L28: 0 | M28: 0 | N28: 0 | O28: 0
D29: Media | E29: =ROUND(H4*$H$8,0) -> 0 | F29: 0 | G29: =F29 -> 0 | H29: 0 | I29: 0 | J29: 0 | K29: 0 | L29: 0 | M29: 0 | N29: 0 | O29: 0
D30: Baja | E30: =ROUND(H5*$H$8,0) -> 0 | F30: 0 | G30: 0 | H30: 0 | I30: 0 | J30: 0 | K30: 0 | L30: 0 | M30: 0 | N30: 0 | O30: 0
D31: Herbazal | E31: =ROUND(H6*$H$8,0) -> 0 | F31: 0 | G31: =ROUND(J6*$H$8,0) -> 0 | H31: =G31 -> 0 | I31: =ROUND(L6*$H$8,0) -> 0 | J31: 0 | K31: 0 | L31: 0 | M31: 0 | N31: 0 | O31: 0
D32: Pastos | E32: =ROUND(H7*$H$8,0) -> 0 | F32: 0 | G32: 0 | H32: 0 | I32: 0 | J32: 0 | K32: 0 | L32: 0 | M32: 0 | N32: 0 | O32: 0
C33: =I2 -> 0 | D33: Alta | E33: =ROUND(I3*$I$8,0) -> 0 | F33: 0 | G33: =F33 -> 0 | H33: 0 | I33: 0 | J33: 0 | K33: 0 | L33: 0 | M33: 0 | N33: 0 | O33: 0
D34: Media | E34: =ROUND(I4*$I$8,0) -> 0 | F34: 0 | G34: =F34 -> 0 | H34: 0 | I34: 0 | J34: 0 | K34: 0 | L34: 0 | O34: 0
D35: Baja | E35: =ROUND(I5*$I$8,0) -> 0 | F35: 0 | G35: 0 | H35: 0 | I35: 0 | J35: 0 | K35: 0 | L35: 0 | M35: 0 | N35: 0 | O35: 0
D36: Herbazal | E36: =ROUND(I6*$I$8,0) -> 0 | F36: 0 | G36: =F36 -> 0 | H36: =G36 -> 0 | I36: =H36 -> 0 | J36: 0 | K36: 0 | L36: 0 | M36: 0 | N36: 0 | O36: 0
D37: Pastos | E37: =ROUND(I7*$I$8,0) -> 0 | F37: 0 | G37: 0 | H37: 0 | I37: 0 | J37: 0 | K37: 0 | L37: 0 | M37: 0 | N37: 0 | O37: 0
C38: =J2 -> 0 | D38: Alta | E38: =ROUND(J3*$J$8,0) -> 0 | F38: 0 | G38: =F38 -> 0 | H38: 0 | I38: 0 | J38: 0 | K38: 0 | L38: 0 | M38: 0 | N38: 0 | O38: 0
D39: Media | E39: =ROUND(J4*$J$8,0) -> 0 | F39: 0 | G39: =F39 -> 0 | H39: 0 | I39: 0 | J39: 0 | K39: 0 | L39: 0 | M39: 0 | N39: 0 | O39: 0
D40: Baja | E40: =ROUND(J5*$J$8,0) -> 0 | F40: 0 | G40: 0 | H40: 0 | I40: 0 | J40: 0 | K40: 0 | L40: 0 | M40: 0 | N40: 0 | O40: 0
D41: Herbazal | E41: =ROUND(J6*$J$8,0) -> 0 | F41: 0 | G41: =F41 -> 0 | H41: =G41 -> 0 | I41: =H41 -> 0 | J41: 0 | K41: 0 | L41: 0 | M41: 0 | N41: 0 | O41: 0
D42: Pastos | E42: =ROUND(J7*$J$8,0) -> 0 | F42: 0 | G42: 0 | H42: 0 | I42: 0 | J42: 0 | K42: 0 | L42: 0 | M42: 0 | N42: 0 | O42: 0
C43: =K2 -> 0 | D43: Alta | E43: =ROUND(K3*$K$8,0) -> 0 | F43: 0 | G43: =F43 -> 0 | H43: 0 | I43: 0 | J43: 0 | K43: 0 | L43: 0 | M43: 0 | N43: 0 | O43: 0
D44: Media | E44: =ROUND(K4*$K$8,0) -> 0 | F44: 0 | G44: =F44 -> 0 | H44: 0 | I44: 0 | J44: 0 | K44: 0 | L44: 0 | M44: 0 | N44: 0 | O44: 0
D45: Baja | E45: =ROUND(K5*$K$8,0) -> 0 | F45: 0 | G45: 0 | H45: 0 | I45: 0 | J45: 0 | K45: 0 | L45: 0 | M45: 0 | N45: 0 | O45: 0
D46: Herbazal | E46: =ROUND(K6*$K$8,0) -> 0 | F46: 0 | G46: =F46 -> 0 | H46: =G46 -> 0 | I46: =H46 -> 0 | J46: 0 | K46: 0 | L46: 0 | M46: 0 | N46: 0 | O46: 0
D47: Pastos | E47: =ROUND(K7*$K$8,0) -> 0 | F47: 0 | G47: 0 | H47: 0 | I47: 0 | J47: 0 | K47: 0 | L47: 0 | M47: 0 | N47: 0 | O47: 0
C48: =L2 -> 0 | D48: Alta | E48: =ROUND(L3*$L$8,0) -> 0 | F48: 0 | G48: =F48 -> 0 | H48: 0 | I48: 0 | J48: 0 | K48: 0 | L48: 0 | M48: 0 | N48: 0 | O48: 0
D49: Media | E49: =ROUND(L4*$L$8,0) -> 0 | F49: =E49 -> 0 | G49: 0 | H49: 0 | I49: 0 | J49: 0 | K49: 0 | L49: 0 | M49: 0 | N49: 0 | O49: 0
D50: Baja | E50: =ROUND(L5*$L$8,0) -> 0 | F50: =E50 -> 0 | G50: 0 | H50: 0 | I50: 0 | J50: 0 | K50: 0 | L50: 0 | M50: 0 | N50: 0 | O50: 0
D51: Herbazal | E51: =ROUND(L6*$L$8,0) -> 0 | F51: =E51 -> 0 | G51: =F51 -> 0 | H51: =G51 -> 0 | I51: =H51 -> 0 | J51: 0 | K51: 0 | L51: 0 | M51: 0 | N51: 0 | O51: 0
D52: Pastos | E52: =ROUND(L7*$L$8,0) -> 0 | F52: =E52 -> 0 | G52: 0 | H52: 0 | I52: 0 | J52: 0 | K52: 0 | L52: 0 | M52: 0 | N52: 0 | O52: 0
C53: =M2 -> 0 | D53: Alta | E53: =ROUND(M3*$M$8,0) -> 0 | F53: 0 | G53: 0 | H53: 0 | I53: 0 | J53: 0 | K53: 0 | L53: 0 | M53: 0 | N53: 0 | O53: 0
D54: Media | E54: =ROUND(M4*$M$8,0) -> 0 | F54: 0 | G54: 0 | H54: 0 | I54: 0 | J54: 0 | K54: 0 | L54: 0 | M54: 0 | N54: 0 | O54: 0
D55: Baja | E55: =ROUND(M5*$M$8,0) -> 0 | F55: 0 | G55: 0 | H55: 0 | I55: 0 | O55: 0
D56: Herbazal | E56: =ROUND(M6*$M$8,0) -> 0 | F56: 0 | G56: 0 | H56: 0 | I56: 0 | O56: 0
D57: Pastos | E57: =ROUND(M7*$M$8,0) -> 0 | F57: 0 | O57: 0
C58: =N2 -> 0 | D58: Alta | E58: =ROUND(N3*$N$8,0) -> 0 | F58: 0 | G58: 0 | H58: 0 | I58: 0 | J58: 0 | K58: 0 | L58: 0 | M58: 0 | N58: 0 | O58: 0
D59: Media | E59: =ROUND(N4*$N$8,0) -> 0 | F59: =E59 -> 0 | G59: 0 | H59: 0 | I59: 0 | J59: 0 | K59: 0 | L59: 0 | O59: 0
D60: Baja | E60: =ROUND(N5*$N$8,0) -> 0 | F60: =E60 -> 0 | O60: 0
D61: Herbazal | E61: =ROUND(N6*$N$8,0) -> 0 | F61: 0 | G61: =F61 -> 0 | H61: =G61 -> 0 | I61: =H61 -> 0 | O61: 0
D62: Pastos | E62: =ROUND(N7*$N$8,0) -> 0 | F62: 0 | O62: 0
C63: =O2 -> 0 | D63: Alta | E63: =ROUND(O3*$O$8,0) -> 0 | F63: 0 | G63: =F63 -> 0 | H63: 0 | I63: 0 | J63: 0 | K63: 0 | L63: 0 | M63: 0 | N63: 0 | O63: 0
D64: Media | E64: =ROUND(O4*$O$8,0) -> 0 | F64: 0 | G64: =F64 -> 0 | H64: 0 | I64: 0 | J64: 0 | K64: 0 | L64: 0 | O64: 0
D65: Baja | E65: =ROUND(O5*$O$8,0) -> 0 | F65: 0 | O65: 0
D66: Herbazal | E66: =ROUND(O6*$O$8,0) -> 0 | F66: 0 | G66: =F66 -> 0 | H66: =G66 -> 0 | I66: =H66 -> 0 | O66: 0
D67: Pastos | E67: =ROUND(O7*$O$8,0) -> 0 | F67: 0 | O67: 0
C68: 0 | D68: Alta | E68: =ROUND(P3*$P$8,0) -> 0 | F68: =E68 -> 0 | G68: 0 | H68: 0 | I68: 0 | J68: 0 | K68: 0 | L68: 0 | M68: 0 | N68: 0 | O68: 0
D69: Media | E69: =ROUND(P4*$P$8,0) -> 0 | F69: =E69 -> 0 | G69: 0 | H69: 0 | I69: 0 | J69: 0 | K69: 0 | L69: 0 | O69: 0
D70: Baja | E70: =ROUND(P5*$P$8,0) -> 0 | F70: 0 | O70: 0
D71: Herbazal | E71: =ROUND(P6*$P$8,0) -> 0 | F71: =E71 -> 0 | G71: =F71 -> 0 | H71: =G71 -> 0 | I71: =H71 -> 0 | O71: 0
D72: Pastos | E72: =ROUND(P7*$P$8,0) -> 0 | F72: =E72 -> 0 | O72: 0
C73: 0 | D73: Alta | E73: =ROUND(Q3*$Q$8,0) -> 0 | F73: =E73 -> 0 | G73: 0 | H73: 0 | I73: 0 | J73: 0 | K73: 0 | L73: 0 | M73: 0 | N73: 0 | O73: =NPV(8.5%,F73:N73)+E73 -> 0
D74: Media | E74: =ROUND(Q4*$Q$8,0) -> 0 | F74: =E74 -> 0 | G74: 0 | H74: 0 | I74: 0 | J74: 0 | K74: 0 | L74: 0 | O74: 0
D75: Baja | E75: =ROUND(Q5*$Q$8,0) -> 0 | F75: =E75 -> 0 | O75: 0
D76: Herbazal | E76: =ROUND(Q6*$Q$8,0) -> 0 | F76: =E76 -> 0 | G76: =F76 -> 0 | H76: =G76 -> 0 | I76: =H76 -> 0 | O76: 0
D77: Pastos | E77: =ROUND(Q7*$Q$8,0) -> 0 | F77: =E77 -> 0 | O77: =NPV(8.5%,F77:N77)+E77 -> 0

Sheet VET
A1: SECRETARIA DISTRITAL DE AMBIENTE SDA
A2: METODOLOGÍA DE VALORACIÓN ECONÓMICA Y AMBIENTAL DE DAÑOS OCASIONADOS POR INCENDIOS FORESTALES PARA LA RESTAURACIÓN
A3: APROXIMACIÓN AL VALOR ECONÓMICO TOTAL
D7: Aproximación al Valor Económico Total | G7: Costo
D8: Valor de uso directo de la madera | G8: ='VUD-Madera'!D5 -> 0
D9: Valor de uso directo de la infraestructura | G9: ='VUD-Infraestructura'!C4 -> 0
D10: Valor de uso directo de la recreación | G10: ='VUD-Recreación'!B5 -> 0
D11: Valor de uso directo del suelo | G11: ='VUD-Suelo Productivo'!C5 -> 0
D12: Valor de uso indirecto de sumidero de carbono | G12: ='VUI-Sumidero de carbono'!C5 -> 36137770
D13: Valor de uso indirecto de soporte y regulación | G13: ='VUI Soporte y Regulación '!B6 -> 942518933
D14: Valor de uso indirecto de la calidad del aire por afectación a la salud | G14: ='VUI-Salud'!C5 -> 0
D15: Valor de existencia de las coberturas | G15: ='VNU-Coberturas'!B5 -> 4073349461
D16: TOTAL | G16: =SUM(G8:G15) -> 5052006164
